fUSD/lending_fUSD_20250814
["ID","MTS","AMOUNT","RATE_DAILY","PERIOD"]
[379218181,1755193843078,-1000.0,0.00027397,2]
[379218182,1755193843087,-1000.0,0.00027397,2]
[379218183,1755193843097,-1000.0,0.00027397,2]
[379218184,1755193843106,-1000.0,0.00027397,2]
[379218185,1755193843115,-1000.0,0.00027397,2]
[379218186,1755193843124,-1000.0,0.00027397,2]
[379218187,1755193843134,-2000.0,0.00027397,2]
[379218189,1755193843143,-2000.0,0.00027397,2]
[379218191,1755193843153,-400.0,0.00027397,2]
[379218193,1755193843162,-740.95,0.00027397,2]
[379218195,1755193843171,-1724.64,0.00027397,2]
[379218197,1755193843181,-400.0,0.00027397,2]
[379218199,1755193843191,-812.87,0.00027397,2]
[379218201,1755193843200,-400.0,0.00027397,2]
[379218203,1755193843209,-400.0,0.00027397,2]
[379218205,1755193843219,-400.0,0.00027397,2]
[379218208,1755193843229,-1070.54,0.00027397,2]
[379218210,1755193843238,-400.0,0.00027397,2]
[379218213,1755193843248,-400.0,0.00027397,2]
[379218215,1755193843257,-400.0,0.00027397,2]
[379218217,1755193843266,-400.0,0.00027397,2]
[379218219,1755193843275,-461.53581361,0.00027397,2]
[379218221,1755193843285,-400.0,0.00027397,2]
[379218223,1755193843293,-691.09,0.00027397,2]
[379218226,1755193843303,-400.0,0.00027397,2]
[379218228,1755193843312,-400.0,0.00027397,2]
[379218230,1755193843322,-400.0,0.00027397,2]
[379218232,1755193843332,-547.57,0.00027397,2]
[379218234,1755193843341,-500.0,0.00027397,2]
[379218236,1755193843351,-500.0,0.00027397,2]
[379218238,1755193843360,-500.0,0.00027397,2]
[379218240,1755193843369,-500.0,0.00027397,2]
[379218242,1755193843378,-500.0,0.00027397,2]
[379218243,1755193843388,-500.0,0.00027397,2]
[379218245,1755193843397,-500.0,0.00027397,2]
[379218247,1755193843406,-500.0,0.00027397,2]
[379218249,1755193843415,-500.0,0.00027397,2]
[379218250,1755193843424,-532.80673452,0.00027397,2]
[379218251,1755193843433,-400.0,0.00027397,2]
[379218252,1755193843442,-400.0,0.00027397,2]
[379218253,1755193843452,-340.59946661,0.00027397,2]
[379218254,1755193843461,-400.0,0.00027397,2]
[379218255,1755193843470,-400.0,0.00027397,2]
[379218256,1755193843479,-1022.74,0.00027397,2]
[379218257,1755193843488,-400.0,0.00027397,2]
[379218258,1755193843497,-892.24,0.00027397,2]
[379218259,1755193843506,-400.0,0.00027397,2]
[379218260,1755193843519,-400.0,0.00027397,2]
[379218261,1755193843529,-400.0,0.00027397,2]
[379218262,1755193843538,-400.0,0.00027397,2]
[379218263,1755193843547,-400.0,0.00027397,2]
[379218264,1755193843557,-2300.38,0.00027397,2]
[379218265,1755193843566,-400.0,0.00027397,2]
[379218266,1755193843575,-400.0,0.00027397,2]
[379218267,1755193843584,-400.0,0.00027397,2]
[379218268,1755193843595,-942.84,0.00027397,2]
[379218269,1755193843604,-400.0,0.00027397,2]
[379218270,1755193843613,-400.0,0.00027397,2]
[379218271,1755193843622,-1278.17,0.00027397,2]
[379218272,1755193843631,-400.0,0.00027397,2]
[379218273,1755193843640,-400.0,0.00027397,2]
[379218274,1755193843649,-2000.0,0.00027397,2]
[379218275,1755193843658,-400.0,0.00027397,2]
[379218276,1755193843667,-2000.0,0.00027397,2]
[379218277,1755193843676,-2000.0,0.00027397,2]
[379218278,1755193843685,-2000.0,0.00027397,2]
[379218279,1755193843694,-2000.0,0.00027397,2]
[379218280,1755193843704,-2000.0,0.00027397,2]
[379218281,1755193843713,-2000.0,0.00027397,2]
[379218282,1755193843722,-2000.0,0.00027397,2]
[379218283,1755193843731,-2000.0,0.00027397,2]
[379218284,1755193843740,-400.0,0.00027397,2]
[379218285,1755193843749,-2000.0,0.00027397,2]
[379218286,1755193843758,-490.54876814,0.00027397,2]
[379218287,1755193843767,-222.82416146,0.00027397,2]
[379218288,1755193843776,-400.0,0.00027397,2]
[379218289,1755193843786,-400.0,0.00027397,2]
[379218290,1755193843795,-400.0,0.00027397,2]
[379218291,1755193843804,-400.0,0.00027397,2]
[379218292,1755193843813,-400.0,0.00027397,2]
[379218293,1755193843822,-681.94,0.00027397,2]
[379218294,1755193843831,-890.15,0.00027397,2]
[379218295,1755193843841,-400.0,0.00027397,2]
[379218296,1755193843850,-400.0,0.00027397,2]
[379218297,1755193843860,-1286.68,0.00027397,2]
[379218298,1755193843869,-400.0,0.00027397,2]
[379218299,1755193843879,-400.0,0.00027397,2]
[379218300,1755193843888,-1093.6,0.00027397,2]
[379218301,1755193843898,-400.0,0.00027397,2]
[379218302,1755193843907,-400.0,0.00027397,2]
[379218303,1755193843916,-400.0,0.00027397,2]
[379218304,1755193843926,-472.44,0.00027397,2]
[379218305,1755193843937,-925.44,0.00027397,2]
[379218306,1755193843946,-1001.25,0.00027397,2]
[379218307,1755193843955,-400.0,0.00027397,2]
[379218308,1755193843965,-400.0,0.00027397,2]
[379218309,1755193843975,-2000.0,0.00027397,30]
[379218310,1755193843984,-400.0,0.00027397,2]
[379218311,1755193843993,-400.0,0.00027397,2]
[379218312,1755193844003,-1337.03,0.00027397,2]
[379218313,1755193844012,-400.0,0.00027397,2]
[379218314,1755193844021,-400.0,0.00027397,2]
[379218315,1755193844031,-400.0,0.00027397,2]
[379218316,1755193844040,-400.0,0.00027397,2]
[379218317,1755193844050,-704.94,0.00027397,2]
[379218318,1755193844059,-400.73,0.00027397,2]
[379218319,1755193844068,-1311.38,0.00027397,2]
[379218320,1755193844078,-500.0,0.00027397,2]
[379218321,1755193844089,-1045.49,0.00027397,2]
[379218322,1755193844098,-1453.35,0.00027397,2]
[379218323,1755193844108,-400.0,0.00027397,2]
[379218324,1755193844119,-400.0,0.00027397,2]
[379218325,1755193844128,-846.2,0.00027397,2]
[379218326,1755193844138,-400.0,0.00027397,2]
[379218327,1755193844147,-150.0,0.00027397,2]
[379218328,1755193844157,-2054.5,0.00027397,2]
[379218329,1755193844167,-400.0,0.00027397,2]
[379218330,1755193844176,-1201.74,0.00027397,2]
[379218331,1755193844185,-400.0,0.00027397,2]
[379218332,1755193844196,-400.0,0.00027397,2]
[379218333,1755193844205,-400.0,0.00027397,2]
[379218334,1755193844215,-400.0,0.00027397,2]
[379218335,1755193844224,-1462.56,0.00027397,2]
[379218336,1755193844234,-1653.41,0.00027397,2]
[379218337,1755193844243,-1285.96,0.00027397,2]
[379218338,1755193844253,-400.0,0.00027397,2]
[379218339,1755193844263,-400.0,0.00027397,2]
[379218340,1755193844272,-400.0,0.00027397,2]
[379218341,1755193844282,-517.57,0.00027397,2]
[379218342,1755193844292,-861.21,0.00027397,2]
[379218343,1755193844302,-941.99,0.00027397,2]
[379218344,1755193844311,-400.0,0.00027397,2]
[379218345,1755193844321,-400.0,0.00027397,2]
[379218346,1755193844330,-904.69,0.00027397,2]
[379218347,1755193844340,-524.81,0.00027397,2]
[379218348,1755193844349,-400.0,0.00027397,2]
[379218349,1755193844358,-617.0,0.00027397,2]
[379218350,1755193844367,-400.0,0.00027397,2]
[379218351,1755193844377,-455.2,0.00027397,2]
[379218352,1755193844386,-400.0,0.00027397,2]
[379218353,1755193844395,-493.76,0.00027397,2]
[379218354,1755193844404,-400.0,0.00027397,2]
[379218355,1755193844414,-400.0,0.00027397,2]
[379218356,1755193844423,-554.77,0.00027397,2]
[379218357,1755193844433,-667.02,0.00027397,2]
[379218358,1755193844442,-1142.71,0.00027397,2]
[379218359,1755193844452,-400.0,0.00027397,2]
[379218360,1755193844461,-1981.6,0.00027397,2]
[379218361,1755193844471,-453.4,0.00027397,2]
[379218362,1755193844480,-400.0,0.00027397,2]
[379218363,1755193844490,-400.0,0.00027397,2]
[379218364,1755193844500,-308.58213457,0.00027397,2]
[379218365,1755193844511,-496.13,0.00027397,2]
[379218366,1755193844522,-2443.05,0.00027397,2]
[379218367,1755193844531,-2865.25,0.00027397,2]
[379218368,1755193844540,-400.0,0.00027397,2]
[379218369,1755193844549,-400.0,0.00027397,2]
[379218370,1755193844560,-400.0,0.00027397,2]
[379218371,1755193844570,-1093.5,0.00027397,2]
[379218372,1755193844579,-400.73,0.00027397,2]
[379218373,1755193844589,-491.67636583,0.00027397,2]
[379218374,1755193844598,-400.0,0.00027397,2]
[379218375,1755193844607,-560.0,0.00027397,2]
[379218376,1755193844616,-1019.53,0.00027397,2]
[379218377,1755193844626,-1556.27,0.00027397,2]
[379218378,1755193844635,-500.0,0.00027397,2]
[379218379,1755193844645,-500.0,0.00027397,2]
[379218380,1755193844654,-500.0,0.00027397,2]
[379218381,1755193845139,-500.0,0.00027397,2]
[379218382,1755193845154,-500.0,0.00027397,2]
[379218383,1755193845164,-500.0,0.00027397,2]
[379218384,1755193845173,-400.0,0.00027397,2]
[379218385,1755193845183,-500.0,0.00027397,2]
[379218386,1755193845193,-500.0,0.00027397,2]
[379218387,1755193845203,-400.0,0.00027397,2]
[379218388,1755193845213,-500.0,0.00027397,2]
[379218389,1755193845222,-500.0,0.00027397,2]
[379218390,1755193845232,-545.33,0.00027397,2]
[379218391,1755193845242,-1139.1,0.00027397,2]
[379218392,1755193845252,-1799.5,0.00027397,2]
[379218393,1755193845261,-779.12,0.00027397,2]
[379218394,1755193845271,-668.86,0.00027397,2]
[379218395,1755193845281,-400.0,0.00027397,2]
[379218396,1755193845290,-400.0,0.00027397,2]
[379218397,1755193845299,-400.0,0.00027397,2]
[379218398,1755193845309,-400.0,0.00027397,2]
[379218399,1755193845318,-1255.47,0.00027397,2]
[379218400,1755193845328,-400.0,0.00027397,2]
[379218401,1755193845338,-400.0,0.00027397,2]
[379218402,1755193845348,-400.0,0.00027397,2]
[379218403,1755193845358,-400.0,0.00027397,2]
[379218404,1755193845367,-400.0,0.00027397,2]
[379218405,1755193845378,-1164.05,0.00027397,2]
[379218406,1755193845388,-400.0,0.00027397,2]
[379218407,1755193845397,-500.0,0.00027397,2]
[379218408,1755193845406,-3258.88,0.00027397,2]
[379218409,1755193845417,-2298.34,0.00027397,2]
[379218410,1755193845427,-1004.14960173,0.00027397,2]
[379218411,1755193845436,-400.0,0.00027397,2]
[379218412,1755193845446,-400.0,0.00027397,2]
[379218413,1755193845456,-400.0,0.00027397,2]
[379218414,1755193845465,-400.0,0.00027397,2]
[379218415,1755193845475,-1132.46,0.00027397,2]
[379218416,1755193845484,-1259.12,0.00027397,2]
[379218417,1755193845494,-400.0,0.00027397,2]
[379218418,1755193845504,-1680.22,0.00027397,2]
[379218419,1755193845516,-1741.17,0.00027397,2]
[379218420,1755193845526,-400.0,0.00027397,2]
[379218421,1755193845538,-400.0,0.00027397,2]
[379218422,1755193845548,-815.5,0.00027397,2]
[379218423,1755193845559,-400.0,0.00027397,2]
[379218425,1755193845568,-770.0,0.00027397,2]
[379218426,1755193845578,-1538.52,0.00027397,2]
[379218428,1755193845589,-2012.23,0.00027397,2]
[379218429,1755193845600,-400.0,0.00027397,2]
[379218430,1755193845610,-500.0,0.00027397,2]
[379218431,1755193845619,-400.0,0.00027397,2]
[379218432,1755193845629,-500.0,0.00027397,2]
[379218433,1755193845639,-500.0,0.00027397,2]
[379218434,1755193845649,-500.0,0.00027397,2]
[379218435,1755193845658,-613.25494668,0.00027397,2]
[379218436,1755193845668,-400.0,0.00027397,2]
[379218437,1755193845678,-561.07,0.00027397,2]
[379218438,1755193845688,-400.0,0.00027397,2]
[379218439,1755193845697,-1031.8,0.00027397,2]
[379218440,1755193845707,-300.0,0.00027397,2]
[379218441,1755193845716,-400.0,0.00027397,2]
[379218442,1755193845726,-930.69,0.00027397,2]
[379218443,1755193845735,-400.0,0.00027397,2]
[379218444,1755193845745,-537.13,0.00027397,2]
[379218445,1755193845754,-400.0,0.00027397,2]
[379218446,1755193845763,-400.0,0.00027397,2]
[379218447,1755193845772,-445.56,0.00027397,2]
[379218448,1755193845782,-2129.73,0.00027397,2]
[379218449,1755193845791,-291.16747412,0.00027397,2]
[379218450,1755193845801,-973.76,0.00027397,2]
[379218451,1755193845810,-2794.42,0.00027397,2]
[379218452,1755193845819,-734.42,0.00027397,2]
[379218453,1755193845828,-400.0,0.00027397,2]
[379218454,1755193845839,-400.0,0.00027397,2]
[379218455,1755193845848,-400.0,0.00027397,2]
[379218456,1755193845858,-400.0,0.00027397,2]
[379218457,1755193845867,-400.0,0.00027397,2]
[379218458,1755193845876,-1441.23,0.00027397,2]
[379218459,1755193845886,-400.0,0.00027397,2]
[379218460,1755193845895,-1032.66,0.00027397,2]
[379218461,1755193845904,-400.0,0.00027397,2]
[379218462,1755193845915,-400.0,0.00027397,2]
[379218463,1755193845925,-2536.0,0.00027397,2]
[379218464,1755193845934,-1515.73,0.00027397,2]
[379218465,1755193845944,-400.0,0.00027397,2]
[379218466,1755193845953,-3488.11,0.00027397,2]
[379218467,1755193845963,-500.0,0.00027397,2]
[379218468,1755193845973,-500.0,0.00027397,2]
[379218469,1755193845983,-400.0,0.00027397,2]
[379218470,1755193845993,-500.0,0.00027397,2]
[379218471,1755193846003,-500.0,0.00027397,2]
[379218473,1755193846012,-500.0,0.00027397,2]
[379218475,1755193846021,-500.0,0.00027397,2]
[379218477,1755193846032,-400.0,0.00027397,2]
[379218479,1755193846041,-500.0,0.00027397,2]
[379218481,1755193846051,-500.0,0.00027397,2]
[379218483,1755193846060,-400.0,0.00027397,2]
[379218485,1755193846071,-2676.87,0.00027397,2]
[379218487,1755193846080,-500.0,0.00027397,2]
[379218489,1755193846090,-500.0,0.00027397,2]
[379218491,1755193846099,-400.0,0.00027397,2]
[379218493,1755193846109,-500.0,0.00027397,2]
[379218495,1755193846118,-500.0,0.00027397,2]
[379218497,1755193846129,-400.0,0.00027397,2]
[379218499,1755193846138,-500.0,0.00027397,2]
[379218501,1755193846148,-400.0,0.00027397,2]
[379218503,1755193846157,-500.0,0.00027397,2]
[379218506,1755193846167,-500.0,0.00027397,2]
[379218508,1755193846177,-771.58,0.00027397,2]
[379218511,1755193846186,-400.0,0.00027397,2]
[379218514,1755193846196,-500.0,0.00027397,2]
[379218518,1755193846206,-500.0,0.00027397,2]
[379218522,1755193846216,-400.0,0.00027397,2]
[379218524,1755193846226,-500.0,0.00027397,2]
[379218526,1755193846236,-3216.44,0.00027397,2]
[379218528,1755193846246,-400.0,0.00027397,2]
[379218530,1755193846255,-400.0,0.00027397,2]
[379218532,1755193846265,-1108.25,0.00027397,2]
[379218534,1755193846274,-2276.33,0.00027397,2]
[379218536,1755193846285,-553.63,0.00027397,2]
[379218538,1755193846294,-2779.75,0.00027397,2]
[379218540,1755193846303,-400.0,0.00027397,2]
[379218542,1755193846313,-1107.7,0.00027397,2]
[379218544,1755193846323,-4027.15,0.00027397,2]
[379218546,1755193846332,-400.0,0.00027397,2]
[379218548,1755193846341,-3321.65,0.00027397,2]
[379218550,1755193846350,-1039.03,0.00027397,2]
[379218552,1755193846360,-494.56,0.00027397,2]
[379218554,1755193846370,-400.0,0.00027397,2]
[379218556,1755193846379,-851.56,0.00027397,2]
[379218558,1755193846389,-1664.99,0.00027397,2]
[379218560,1755193846398,-611.51,0.00027397,2]
[379218562,1755193846408,-401.03582159,0.00027397,2]
[379218564,1755193846417,-400.0,0.00027397,2]
[379218566,1755193846427,-400.0,0.00027397,2]
[379218568,1755193846436,-400.0,0.00027397,2]
[379218570,1755193846445,-400.0,0.00027397,2]
[379218572,1755193846455,-400.0,0.00027397,2]
[379218574,1755193846465,-894.48,0.00027397,2]
[379218576,1755193846474,-400.0,0.00027397,2]
[379218578,1755193846484,-400.0,0.00027397,2]
[379218580,1755193846493,-400.0,0.00027397,2]
[379218582,1755193846502,-902.09,0.00027397,2]
[379218584,1755193846520,-870.24,0.00027397,2]
[379218586,1755193846531,-400.0,0.00027397,2]
[379218588,1755193846540,-581.76,0.00027397,2]
[379218590,1755193846550,-609.75,0.00027397,2]
[379218592,1755193846561,-400.0,0.00027397,2]
[379218595,1755193846571,-400.0,0.00027397,2]
[379218597,1755193846580,-1640.11,0.00027397,2]
[379218599,1755193846591,-1854.77,0.00027397,2]
[379218601,1755193846600,-1599.02,0.00027397,2]
[379218603,1755193846610,-151.0,0.00027397,7]
[379218605,1755193846620,-400.0,0.00027397,2]
[379218607,1755193846629,-400.0,0.00027397,2]
[379218609,1755193846638,-400.0,0.00027397,2]
[379218611,1755193846647,-2000.0,0.00027397,2]
[379218613,1755193846657,-423.27,0.00027397,2]
[379218615,1755193846666,-2000.0,0.00027397,2]
[379218617,1755193846675,-2000.0,0.00027397,2]
[379218619,1755193846685,-2000.0,0.00027397,2]
[379218621,1755193846695,-400.0,0.00027397,2]
[379218623,1755193846705,-2000.0,0.00027397,2]
[379218625,1755193846715,-400.0,0.00027397,2]
[379218627,1755193846724,-2000.0,0.00027397,2]
[379218629,1755193846734,-2000.0,0.00027397,2]
[379218631,1755193846744,-2000.0,0.00027397,2]
[379218633,1755193846753,-2000.0,0.00027397,2]
[379218635,1755193846763,-2000.0,0.00027397,2]
[379218637,1755193846773,-1983.12,0.00027397,2]
[379218639,1755193846786,-2000.0,0.00027397,2]
[379218641,1755193846795,-664.82,0.00027397,2]
[379218643,1755193846805,-500.0,0.00027397,2]
[379218645,1755193846814,-500.0,0.00027397,2]
[379218647,1755193846824,-500.0,0.00027397,2]
[379218649,1755193846833,-2113.44,0.00027397,2]
[379218651,1755193846842,-400.0,0.00027397,2]
[379218653,1755193846852,-400.0,0.00027397,2]
[379218655,1755193846862,-500.0,0.00027397,2]
[379218657,1755193846872,-500.0,0.00027397,2]
[379218659,1755193846881,-500.0,0.00027397,2]
[379218661,1755193846891,-400.0,0.00027397,2]
[379218663,1755193846900,-500.0,0.00027397,2]
[379218665,1755193846910,-1417.03,0.00027397,2]
[379218667,1755193846920,-500.0,0.00027397,2]
[379218669,1755193846929,-400.0,0.00027397,2]
[379218671,1755193846938,-500.0,0.00027397,2]
[379218674,1755193846948,-500.0,0.00027397,2]
[379218675,1755193846958,-500.0,0.00027397,2]
[379218678,1755193846967,-1627.84,0.00027397,2]
[379218680,1755193846977,-500.0,0.00027397,2]
[379218682,1755193846987,-575.64,0.00027397,2]
[379218684,1755193846996,-500.0,0.00027397,2]
[379218686,1755193847006,-500.0,0.00027397,2]
[379218688,1755193847015,-500.0,0.00027397,2]
[379218690,1755193847024,-393.23059106,0.00027397,2]
[379218692,1755193847035,-500.0,0.00027397,2]
[379218694,1755193847045,-500.0,0.00027397,2]
[379218696,1755193847054,-500.0,0.00027397,2]
[379218698,1755193847065,-418.38,0.00027397,2]
[379218700,1755193847074,-547.37,0.00027397,2]
[379218702,1755193847084,-431.8,0.00027397,2]
[379218704,1755193847096,-1039.92,0.00027397,2]
[379218706,1755193847105,-400.0,0.00027397,2]
[379218708,1755193847115,-2290.07,0.00027397,2]
[379218710,1755193847125,-400.0,0.00027397,2]
[379218712,1755193847134,-400.0,0.00027397,2]
[379218714,1755193847144,-1436.25,0.00027397,2]
[379218716,1755193847153,-400.0,0.00027397,2]
[379218718,1755193847162,-400.0,0.00027397,2]
[379218720,1755193847172,-2809.03,0.00027397,2]
[379218722,1755193847182,-400.0,0.00027397,2]
[379218724,1755193847191,-400.0,0.00027397,2]
[379218726,1755193847201,-494.18,0.00027397,2]
[379218728,1755193847211,-506.19,0.00027397,2]
[379218730,1755193847220,-1834.92,0.00027397,2]
[379218732,1755193847230,-400.0,0.00027397,2]
[379218734,1755193847239,-400.0,0.00027397,2]
[379218736,1755193847248,-600.69,0.00027397,2]
[379218738,1755193847258,-1201.24,0.00027397,2]
[379218741,1755193847268,-400.0,0.00027397,2]
[379218743,1755193847277,-400.0,0.00027397,2]
[379218744,1755193847288,-1110.75,0.00027397,2]
[379218747,1755193847297,-2170.77,0.00027397,2]
[379218749,1755193847306,-1600.61,0.00027397,2]
[379218750,1755193847316,-400.0,0.00027397,2]
[379218752,1755193847325,-400.0,0.00027397,2]
[379218754,1755193847335,-657.95,0.00027397,2]
[379218756,1755193847345,-439.82,0.00027397,2]
[379218758,1755193847354,-400.0,0.00027397,2]
[379218761,1755193847364,-400.0,0.00027397,2]
[379218763,1755193847374,-400.0,0.00027397,2]
[379218765,1755193847383,-546.69,0.00027397,2]
[379218767,1755193847392,-1066.54,0.00027397,2]
[379218768,1755193847401,-500.0,0.00027397,2]
[379218771,1755193847412,-1399.02,0.00027397,2]
[379218773,1755193847422,-1399.02,0.00027397,2]
[379218775,1755193847432,-1399.02,0.00027397,2]
[379218777,1755193847441,-1399.02,0.00027397,2]
[379218779,1755193847451,-1399.02,0.00027397,2]
[379218780,1755193847460,-460.38,0.00027397,2]
[379218781,1755193847469,-5210.04,0.00027397,2]
[379218783,1755193847479,-442.47,0.00027397,2]
[379218785,1755193847488,-1399.02,0.00027397,2]
[379218787,1755193847498,-1901.08,0.00027397,2]
[379218802,1755193847631,-5021.19,0.00027397,2]
[379218804,1755193847641,-1399.02,0.00027397,2]
[379218806,1755193847650,-1399.02,0.00027397,2]
[379218808,1755193847659,-2030.96,0.00027397,2]
[379218810,1755193847668,-1399.02,0.00027397,2]
[379218812,1755193847677,-1399.02,0.00027397,2]
[379218814,1755193847686,-1399.02,0.00027397,2]
[379218816,1755193847695,-1399.02,0.00027397,2]
[379218818,1755193847704,-1399.02,0.00027397,2]
[379218820,1755193847714,-974.4,0.00027397,2]
[379218822,1755193847723,-1399.02,0.00027397,2]
[379218824,1755193847732,-1399.02,0.00027397,2]
[379218826,1755193847742,-1399.02,0.00027397,2]
[379218828,1755193847751,-1399.02,0.00027397,2]
[379218830,1755193847761,-400.0,0.00027397,2]
[379218832,1755193847770,-1399.02,0.00027397,2]
[379218834,1755193847781,-1399.02,0.00027397,2]
[379218836,1755193847790,-1399.02,0.00027397,2]
[379218838,1755193847799,-1316.01,0.00027397,2]
[379218840,1755193847809,-1399.02,0.00027397,2]
[379218842,1755193847818,-1399.02,0.00027397,2]
[379218844,1755193847827,-1399.02,0.00027397,2]
[379218846,1755193847836,-1399.12054088,0.00027397,2]
[379218848,1755193847845,-1429.96,0.00027397,2]
[379218850,1755193847854,-758.2,0.00027397,2]
[379218852,1755193847864,-400.0,0.00027397,2]
[379218854,1755193847873,-677.35,0.00027397,2]
[379218856,1755193847883,-2721.97,0.00027397,2]
[379218858,1755193847892,-400.0,0.00027397,2]
[379218860,1755193847901,-1407.5,0.00027397,2]
[379218862,1755193847910,-400.0,0.00027397,2]
[379218864,1755193847920,-1413.94,0.00027397,2]
[379218866,1755193847929,-400.0,0.00027397,2]
[379218867,1755193847937,-151.0,0.00027397,7]
[379218868,1755193847946,-1934.99,0.00027397,2]
[379218869,1755193847955,-400.0,0.00027397,2]
[379218870,1755193847964,-400.0,0.00027397,2]
[379218871,1755193847972,-400.0,0.00027397,2]
[379218872,1755193847981,-627.48,0.00027397,2]
[379218873,1755193847990,-400.0,0.00027397,2]
[379218874,1755193847999,-151.0,0.00027397,7]
[379218875,1755193848008,-400.0,0.00027397,2]
[379218876,1755193848016,-400.0,0.00027397,2]
[379218877,1755193848025,-400.0,0.00027397,2]
[379218878,1755193848037,-3786.24,0.00027397,2]
[379218879,1755193848046,-1192.16,0.00027397,2]
[379218880,1755193848055,-1776.95,0.00027397,2]
[379218881,1755193848064,-400.0,0.00027397,2]
[379218882,1755193848073,-2730.9,0.00027397,2]
[379218884,1755193848082,-1875.37,0.00027397,2]
[379218886,1755193848091,-400.0,0.00027397,2]
[379218888,1755193848100,-520.23,0.00027397,2]
[379218890,1755193848110,-727.18,0.00027397,2]
[379218892,1755193848119,-1717.04,0.00027397,2]
[379218894,1755193848128,-150.0,0.00027397,2]
[379218896,1755193848138,-1020.78,0.00027397,2]
[379218898,1755193848147,-400.0,0.00027397,2]
[379218900,1755193848156,-207.85535438,0.00027397,2]
[379218902,1755193848165,-400.0,0.00027397,2]
[379218903,1755193848175,-400.0,0.00027397,2]
[379218906,1755193848186,-400.0,0.00027397,2]
[379218908,1755193848195,-380.84188387,0.00027397,2]
[379218910,1755193848205,-1480.24,0.00027397,2]
[379218912,1755193848214,-400.0,0.00027397,2]
[379218914,1755193848225,-5415.52,0.00027397,2]
[379218916,1755193848234,-599.19,0.00027397,2]
[379218918,1755193848244,-3297.1,0.00027397,2]
[379218920,1755193848253,-902.38,0.00027397,2]
[379218922,1755193848262,-1816.04,0.00027397,2]
[379218924,1755193848272,-400.0,0.00027397,2]
[379218926,1755193848283,-570.29,0.00027397,2]
[379218928,1755193848292,-512.88,0.00027397,2]
[379218930,1755193848302,-525.91,0.00027397,2]
[379218932,1755193848311,-400.0,0.00027397,2]
[379218934,1755193848321,-575.0,0.00027397,2]
[379218936,1755193848330,-400.0,0.00027397,2]
[379218938,1755193848340,-400.0,0.00027397,2]
[379218940,1755193848349,-400.0,0.00027397,2]
[379218942,1755193848359,-1744.95,0.00027397,2]
[379218943,1755193848369,-2349.14,0.00027397,2]
[379218946,1755193848379,-5327.32,0.00027397,2]
[379218948,1755193848389,-400.0,0.00027397,2]
[379218949,1755193848398,-1045.19,0.00027397,2]
[379218952,1755193848408,-400.0,0.00027397,2]
[379218954,1755193848418,-1254.59,0.00027397,2]
[379218955,1755193848428,-3661.6,0.00027397,2]
[379218957,1755193848437,-500.0,0.00027397,2]
[379218959,1755193848447,-400.0,0.00027397,2]
[379218961,1755193848456,-400.0,0.00027397,2]